[Event "22nd Hoogeveen Open 2018"]
[Site "Hoogeveen"]
[Date "2018.10.21"]
[Round "2"]
[White "Van de Pavoordt, Max"]
[Black "De Jong, Migchiel"]
[Result "0-1"]
[ECO "A48"]
[WhiteElo "2034"]
[BlackElo "2309"]
[Annotator "NA"]
[PlyCount "76"]
[EventDate "2018.10.20"]
[EventType "swiss"]
[EventCountry "NED"]
[SourceTitle "playchess.com"]
[Source "ChessBase"]
[SourceQuality "1"]
[TimeControl "40/5400+30:1800+30"]

1. d4 {[%emt 0:00:00]} Nf6 {[%emt 0:00:00]} 2. Nf3 {[%emt 0:00:09]} g6 {[%emt 0:00:43]} 3. Bf4 {[%emt 0:01:03]} Bg7 {[%emt 0:03:59]} 4. e3 {[%emt 0:02:45]} c5 {[%emt 0:01:46]} 5. c3 {[%emt 0:00:00]} b6 {[%emt 0:01:54] LiveBook: 119 Games} 6. Bc4 {[%emt 0:04:59] A48: 1 d4 Nf6 2 Nf3 g6: Torre, London and Colle Systems} (6. Be2 Bb7 7. O-O O-O 8. h3 d6 9. Bh2 Nbd7 10. a4 Qc7 11. Nbd2 a6 12. Qb3 Bc6 13. c4 e6 14. Rfd1 Rfd8 15. Rac1 Rab8 16. Nb1 Ne4 17. d5 exd5 18. cxd5 Bb7 19. Nfd2 Nxd2 20. Rxd2 {0-1 (55) Bruzon Batista,L (2698)-Radjabov,T (2733) Tromsoe 2013}) 6... O-O {[%emt 0:03:20]} 7. Nbd2 {[%emt 0:01:57]} Bb7 {[%emt 0:02:46]} 8. O-O {[%emt 0:03:08]} d6 {[%emt 0:00:28]} 9. dxc5 $146 {[%emt 0:04:47]} ({Predecessor:} 9. Re1 Nbd7 10. h3 a6 11. a4 Qc7 12. Qb3 Bc6 13. Ng5 e6 14. Bxe6 fxe6 15. Qxe6+ {0-1 (45) Chojnacki,S (2237)-Troyke,C (2348) Katowice 2017}) 9... bxc5 {[%emt 0:02:30]} 10. Qc2 {[%emt 0:08:43]} e5 $1 {[%emt 0:12:23]} 11. Bg3 {[%emt 0:01:51]} e4 {[%emt 0:01:32]} 12. Ng5 {[%emt 0:02:05]} d5 {[%emt 0:02:02]} 13. Be2 {[%emt 0:00:36]} Nc6 {[%emt 0:02:06]} 14. Nb3 {[%emt 0:04:23]} Qe7 {[%emt 0:01:32]} 15. Rad1 {[%emt 0:02:07]} Rad8 {[%emt 0:04:42]} 16. Nh3 {[%emt 0:01:26]} Bc8 {[%emt 0:04:01]} 17. Bb5 {[%emt 0:06:46]} Qb7 {[%emt 0:02:34]} 18. Be2 {[%emt 0:05:18]} Bxh3 {[%emt 0:02:42]} 19. gxh3 {[%emt 0:02:29]} c4 {[%emt 0:01:28]} 20. Nd4 {[%emt 0:01:21]} Nxd4 {[%emt 0:00:26]} 21. cxd4 {[%emt 0:01:47]} Rc8 {[%emt 0:02:58]} 22. Rb1 {[%emt 0:06:29]} Rfe8 {[%emt 0:01:00]} (22... Qd7 $11) 23. Rfc1 {[%emt 0:03:44]} Qd7 {[%emt 0:07:12]} 24. Kg2 {[%emt 0:02:07]} (24. b3 $11) 24... Re6 {[%emt 0:03:21] [#]} 25. b3 $1 {[%emt 0:01:27]} Rec6 {[%emt 0:02:18]} 26. bxc4 {[%emt 0:02:36]} dxc4 $14 {[%emt 0:00:06]} 27. Be5 {[%emt 0:05:54]} Qd5 {[%emt 0:01:34]} 28. Rb4 {[%emt 0:02:39]} Nd7 {[%emt 0:02:12]} 29. Bxc4 {[%emt 0:02:41]} Nxe5 {[%emt 0:02:27]} 30. dxe5 {[%emt 0:01:22]} Qxe5 {[%emt 0:00:45]} 31. Qb3 {[%emt 0:01:41]} Kh8 {[%emt 0:01:27]} 32. Rd1 {[%emt 0:00:57]} Qg5+ {[%emt 0:00:52]} 33. Kh1 {[%emt 0:01:09]} Qf5 {[%emt 0:00:59]} 34. Kg1 {[%emt 0:02:03]} Be5 {[%emt 0:02:41]} 35. Rd5 {[%emt 0:02:40]} Rf6 {[%emt 0:01:09]} 36. Qc2 {[%emt 0:01:16]} Bxh2+ {[%emt 0:00:44]} 37. Kxh2 {[%emt 0:01:00]} Qxd5 {[%emt 0:00:05]} 38. Bxd5 {[%emt 0:00:12]} Rxc2 {[%emt 0:00:05]} 0-1

[Event "22nd Hoogeveen Open 2018"]
[Site "Hoogeveen"]
[Date "2018.10.21"]
[Round "2"]
[White "Minko, Dmitry"]
[Black "Hulshof, Peter"]
[Result "1/2-1/2"]
[ECO "B15"]
[WhiteElo "2011"]
[BlackElo "2168"]
[Annotator "NA"]
[PlyCount "30"]
[EventDate "2018.10.20"]
[EventType "swiss"]
[EventCountry "NED"]
[SourceTitle "playchess.com"]
[Source "ChessBase"]
[SourceQuality "1"]
[TimeControl "40/5400+30:1800+30"]

1. e4 {[%emt 0:00:00]} g6 {[%emt 0:00:00]} 2. d4 {[%emt 0:00:00]} Bg7 {[%emt 0:00:00]} 3. Nc3 {[%emt 0:00:00]} c6 {[%emt 0:00:03]} 4. f4 {[%emt 0:00:48]} d5 {[%emt 0:00:14]} 5. e5 {[%emt 0:00:33]} Nh6 {[%emt 0:00:15]} 6. Nf3 {[%emt 0:01:19]} f6 {[%emt 0:05:17]} 7. Be2 {[%emt 0:01:02]} O-O {[%emt 0:00:18]} 8. Be3 {[%emt 0:00:47]} Bg4 {[%emt 0:01:09] LiveBook: 86 Games} 9. Nh4 {[%emt 0:01:43]} Bxe2 {[%emt 0:01:28]} 10. Qxe2 {[%emt 0:00:13]} fxe5 {[%emt 0:01:44]} 11. fxe5 {[%emt 0:02:06]} e6 {[%emt 0:13:51]} 12. Nf3 {[%emt 0:20:15]} Nf5 {[%emt 0:07:39]} (12... c5 $5) 13. O-O-O {[%emt 0:02:26]} Nd7 $14 {[%emt 0:06:15]} 14. Kb1 {[%emt 0:15:48]} Nxe3 {[%emt 0:06:14]} 15. Qxe3 {[%emt 0:00:12]} Qe7 {[%emt 0:04:36]} 1/2-1/2

[Event "22nd Hoogeveen Open 2018"]
[Site "Hoogeveen"]
[Date "2018.10.21"]
[Round "2"]
[White "Klaren, Duncan"]
[Black "Zarkovic, Mila"]
[Result "0-1"]
[ECO "B82"]
[WhiteElo "1950"]
[BlackElo "2213"]
[Annotator "NA"]
[PlyCount "104"]
[EventDate "2018.10.20"]
[EventType "swiss"]
[EventCountry "NED"]
[SourceTitle "playchess.com"]
[Source "ChessBase"]
[SourceQuality "1"]
[TimeControl "40/5400+30:1800+30"]

1. e4 {[%emt 0:00:00]} c5 {[%emt 0:00:00]} 2. Nf3 {[%emt 0:00:00]} d6 {[%emt 0:00:00]} 3. d4 {[%emt 0:00:00]} cxd4 {[%emt 0:00:00]} 4. Nxd4 {[%emt 0:00:00]} Nf6 {[%emt 0:00:03]} 5. Nc3 {[%emt 0:00:00]} a6 {[%emt 0:00:15]} 6. f4 {[%emt 0:00:00]} e6 {[%emt 0:04:41]} 7. Be3 {[%emt 0:02:51]} b5 {[%emt 0:02:43]} 8. a3 {[%emt 0:01:14]} Bb7 {[%emt 0:01:01]} 9. Bd3 {[%emt 0:00:23] B82: Sicilian Scheveningen: 6 f4} (9. Qf3 Nbd7 10. Bd3 h5 11. O-O-O Rc8 12. Rhe1 Rxc3 13. bxc3 Nc5 14. Nb3 Na4 15. Nc5 dxc5 16. Bxb5+ axb5 17. Rxd8+ Kxd8 {0-1 (38) Sek,K (2476)-Antipov,M (2616) Yaroslavl 2018}) 9... Nbd7 {[%emt 0:02:27]} 10. O-O {[%emt 0:03:38] LiveBook: 72 Games} Be7 {[%emt 0:04:39]} 11. Qe2 {[%emt 0:03:45]} Rc8 {[%emt 0:06:46]} 12. Rae1 {[%emt 0:07:29]} O-O {[%emt 0:07:08]} 13. Kh1 {[%emt 0:10:31]} Rxc3 {[%emt 0:09:29]} 14. bxc3 {[%emt 0:00:38]} Nxe4 {[%emt 0:04:12]} 15. Rf3 $146 {[%emt 0:03:21]} ({Reject} 15. Qh5 Ndf6 $17) (15. c4 $11 {and White has nothing to worry.}) ({Predecessor:} 15. Bxe4 Bxe4 {0-1 (31) Rios Parra,A (2323)-Barrientos,S (2480) Bagre 2018}) 15... Bh4 {[%emt 0:13:16]} 16. Bg1 {[%emt 0:11:11]} Bxe1 {[%emt 0:23:56]} ({Weaker is} 16... Nxc3 {[#]} 17. Bxh7+ $1 {[%mdl 512]} Kxh7 18. Rxc3 $11) 17. Bxe4 {[%emt 0:01:52]} Bxe4 {[%emt 0:00:26]} 18. Qxe4 {[%emt 0:00:06] [#]} Bh4 $1 {[%emt 0:08:53]} ({Worse is} 18... Qh4 19. Rh3 $16 (19. g3 Qg4 $11)) 19. Rh3 {[%emt 0:00:46]} Nc5 {[%emt 0:01:04]} 20. Qf3 {[%emt 0:02:24] [#]} Bf6 $1 {[%emt 0:02:56]} 21. Qh5 {[%emt 0:04:04]} h6 {[%emt 0:00:03]} 22. Be3 {[%emt 0:00:44]} Qa5 {[%emt 0:04:25]} 23. Ne2 {[%emt 0:13:23]} Ne4 {[%emt 0:00:01]} 24. Qf3 {[%emt 0:01:24]} d5 {[%emt 0:00:50]} 25. f5 $19 {[%emt 0:00:25]} Ng5 {[%emt 0:01:18]} 26. Bxg5 {[%emt 0:00:33]} Bxg5 {[%emt 0:00:01]} 27. Rg3 {[%emt 0:02:55]} exf5 {[%emt 0:00:14]} 28. Nd4 {[%emt 0:01:06]} Qxa3 {[%emt 0:01:04]} 29. h3 {[%emt 0:01:26]} Qc1+ {[%emt 0:00:13]} 30. Kh2 {[%emt 0:00:19]} Bf4 {[%emt 0:01:15]} 31. Nxf5 {[%emt 0:00:52]} Bxg3+ {[%emt 0:00:06]} 32. Qxg3 {[%emt 0:00:03]} Qg5 {[%emt 0:00:05]} 33. Qe5 {[%emt 0:00:07]} Rd8 {[%emt 0:01:41]} 34. Qc7 {[%emt 0:01:15]} Qxf5 {[%emt 0:00:37]} 35. Qxd8+ {[%emt 0:00:06]} Kh7 {[%emt 0:00:06]} 36. Qb6 {[%emt 0:00:46]} Qe5+ {[%emt 0:00:35]} 37. Kh1 {[%emt 0:00:17]} Qxc3 {[%emt 0:00:16]} 38. Qxa6 {[%emt 0:00:06]} Qxc2 {[%emt 0:00:31]} 39. Qxb5 {[%emt 0:00:05]} Qe4 {[%emt 0:00:37]} 40. Qd7 {[%emt 0:00:29]} Qe1+ {[%emt 0:00:32]} 41. Kh2 {[%emt 0:30:10]} Qe6 {[%emt 0:30:43]} 42. Qc7 {[%emt 0:00:26]} d4 {[%emt 0:00:00]} 43. Qd8 {[%emt 0:00:00]} Qe5+ {[%emt 0:00:00]} 44. Kh1 {[%emt 0:00:00]} Qf4 {[%emt 0:00:00]} 45. Kg1 {[%emt 0:00:00]} Qe3+ {[%emt 0:00:00]} 46. Kh2 {[%emt 0:00:00]} d3 {[%emt 0:00:00]} 47. Qd5 {[%emt 0:00:00]} Qf4+ {[%emt 0:00:00]} 48. Kh1 {[%emt 0:00:00]} d2 {[%emt 0:00:00]} 49. Kg1 {[%emt 0:00:00]} Qe3+ {[%emt 0:00:00]} 50. Kh2 {[%emt 0:00:00]} Kg6 {[%emt 0:00:00]} 51. h4 {[%emt 0:00:00]} Qe2 {[%emt 0:00:57]} 52. Qd6+ {[%emt 0:00:00]} f6 {[%emt 0:02:27]} 0-1

[Event "22nd Hoogeveen Open 2018"]
[Site "Hoogeveen"]
[Date "2018.10.21"]
[Round "2"]
[White "Van Foreest, Machteld"]
[Black "Rakshitta, Ravi"]
[Result "0-1"]
[ECO "C45"]
[WhiteElo "1934"]
[BlackElo "2160"]
[Annotator "NA"]
[PlyCount "104"]
[EventDate "2018.10.20"]
[EventType "swiss"]
[EventCountry "NED"]
[SourceTitle "playchess.com"]
[Source "ChessBase"]
[SourceQuality "1"]
[TimeControl "40/5400+30:1800+30"]

1. e4 {[%emt 0:00:00]} e5 {[%emt 0:01:06]} 2. Nf3 {[%emt 0:00:00]} Nc6 {[%emt 0:00:12]} 3. d4 {[%emt 0:00:26]} exd4 {[%emt 0:00:05]} 4. Nxd4 {[%emt 0:00:05]} Nf6 {[%emt 0:00:07]} 5. Nxc6 {[%emt 0:00:06]} bxc6 {[%emt 0:00:05]} 6. e5 {[%emt 0:00:06]} Qe7 {[%emt 0:00:04]} 7. Qe2 {[%emt 0:00:05]} Nd5 {[%emt 0:00:03]} 8. c4 {[%emt 0:00:04]} Ba6 {[%emt 0:00:03]} 9. Nd2 {[%emt 0:00:05]} g6 {[%emt 0:00:15]} 10. Nf3 {[%emt 0:00:15] C45: Scotch Game} Qb4+ {[%emt 0:00:22]} 11. Kd1 {[%emt 0:01:22]} Ne7 {[%emt 0:00:05]} 12. a3 $146 {[%emt 0:12:39]} ({Predecessor:} 12. Qc2 c5 13. Bd3 Bg7 14. Re1 O-O 15. Qb3 Nc6 16. Bd2 Qb6 17. Qxb6 axb6 {0-1 (32) Jones,G (2668)-Kramnik,V (2803) Douglas 2017}) 12... Qb3+ {[%emt 0:08:50]} 13. Qc2 {[%emt 0:03:47]} Qxc2+ {[%emt 0:00:06]} 14. Kxc2 {[%emt 0:00:06]} c5 {[%emt 0:00:04]} 15. Bd3 {[%emt 0:02:32]} Nc6 {[%emt 0:00:50]} 16. Re1 {[%emt 0:03:00]} Bg7 {[%emt 0:13:11]} 17. Be3 {[%emt 0:04:28]} O-O {[%emt 0:01:37]} 18. Bxc5 {[%emt 0:02:37]} Rfe8 {[%emt 0:00:05]} 19. Re2 {[%emt 0:09:16]} (19. Rad1 $16) 19... Nxe5 {[%emt 0:13:09]} 20. Nxe5 {[%emt 0:02:54]} Rxe5 {[%emt 0:00:44]} 21. Rxe5 {[%emt 0:01:40]} Bxe5 {[%emt 0:00:02]} 22. Re1 {[%emt 0:00:59]} d6 {[%emt 0:02:55]} 23. Be3 {[%emt 0:02:21]} f5 {[%emt 0:05:14]} 24. f4 {[%emt 0:03:14]} Bf6 {[%emt 0:00:23]} 25. b3 {[%emt 0:01:28]} Bb7 {[%emt 0:00:35]} 26. g3 {[%emt 0:05:09]} Re8 {[%emt 0:11:08]} 27. Kd2 {[%emt 0:03:07]} Bb2 {[%emt 0:01:57]} 28. Bf2 {[%emt 0:03:35]} Be4 {[%emt 0:02:21]} 29. Bxe4 {[%emt 0:04:00]} fxe4 {[%emt 0:00:05]} 30. a4 {[%emt 0:05:48]} a5 {[%emt 0:00:44]} 31. Kc2 {[%emt 0:01:48]} Ba3 $1 {[%emt 0:00:55]} 32. Be3 $14 {[%emt 0:00:34]} Bb4 {[%emt 0:03:26]} 33. Rd1 {[%emt 0:03:40]} Kf7 {[%emt 0:01:01]} 34. Bd2 {[%emt 0:04:49]} Bxd2 {[%emt 0:02:17]} 35. Kxd2 {[%emt 0:00:00]} Rb8 {[%emt 0:05:32]} 36. Kc3 {[%emt 0:03:13]} Ke6 {[%emt 0:00:07]} 37. Rd5 {[%emt 0:06:50]} Ra8 {[%emt 0:00:49]} 38. Rd4 {[%emt 0:04:52]} Kf5 {[%emt 0:03:06]} 39. h3 {[%emt 0:00:24]} Re8 {[%emt 0:09:50]} 40. Rd5+ {[%emt 0:02:54]} Ke6 {[%emt 0:00:27]} 41. Kd4 {[%emt 0:35:29]} Kd7 {[%emt 0:34:30]} 42. Ke3 {[%emt 0:00:36]} c5 {[%emt 0:00:19]} 43. Rd1 {[%emt 0:00:00]} Kc6 {[%emt 0:00:00]} 44. g4 {[%emt 0:00:00]} Rb8 {[%emt 0:00:00]} 45. Rb1 {[%emt 0:00:00]} d5 {[%emt 0:00:00]} 46. cxd5+ {[%emt 0:00:00]} Kxd5 {[%emt 0:00:00]} 47. Rd1+ {[%emt 0:00:00]} Ke6 {[%emt 0:00:00]} 48. Rc1 {[%emt 0:00:00]} Rb7 {[%emt 0:00:57]} 49. b4 Rxb4 {[%emt 0:00:00] Kxe4 [%clk 00:12:31] c4 [%clk 00:34:41] [%emt 00:09:44] Ke3 [%clk 00:09:46] Kd5 [%clk 00:22:06] [%emt 00:14:47]} 50. Rd1 {[%emt 0:00:00] Kc5 [%clk 00:22:31] [%emt 00:00:06] f5 [%clk 00:09:35] [%emt 00:01:07] gxf5 [%clk 00:22:59] [%emt 00:00:01] gxf5 [%clk 00:09:59] [%emt 00:00:06]} Rb8 {[%emt 0:00:00] Kf4 [%clk 00:08:57] [%emt 00:01:33] c3 [%clk 00:18:48] [%emt 00:01:49] Kg5 [%clk 00:06:26] [%emt 00:03:01] Kc4 [%clk 00:19:11] [%emt 00:00:06] f6 [%clk 00:04:58] [%emt 00:01:58] c2 [%clk 00:17:39] [%emt 00:02:02]} 51. Rf1 {[%emt 0:00:16]} Rb7 {[%emt 0:08:12] Kf5 [%clk 00:02:04] [%emt 00:03:16]} 52. Rb1 {[%emt 0:00:00] Rf4+ [%clk 00:02:23] [%emt 00:00:10]} Kd5 {[%emt 0:02:36] f7 [%clk 00:01:40] [%emt 00:01:14] c1=Q [%clk 00:05:51] [%emt 00:00:08]} 0-1

[Event "22nd Hoogeveen Open 2018"]
[Site "Hoogeveen"]
[Date "2018.10.21"]
[Round "2"]
[White "De Vries, Emma"]
[Black "Clemens, Adrian"]
[Result "0-1"]
[ECO "B52"]
[WhiteElo "1905"]
[BlackElo "2153"]
[Annotator "NA"]
[PlyCount "60"]
[EventDate "2018.10.20"]
[EventType "swiss"]
[EventCountry "NED"]
[SourceTitle "playchess.com"]
[Source "ChessBase"]
[SourceQuality "1"]
[TimeControl "40/5400+30:1800+30"]

1. e4 {[%emt 0:00:00]} c5 {[%emt 0:00:00]} 2. Nf3 {[%emt 0:00:00]} d6 {[%emt 0:00:00]} 3. Bb5+ {[%emt 0:00:00]} Bd7 {[%emt 0:00:40]} 4. Bxd7+ {[%emt 0:00:04]} Nxd7 {[%emt 0:00:07]} 5. O-O {[%emt 0:00:19]} Ngf6 {[%emt 0:00:08]} 6. Re1 {[%emt 0:00:15]} Rc8 {[%emt 0:03:09] B52: Sicilian: Moscow Variation with 3...Bd7} (6... e6 7. c3 Be7 8. d4 O-O 9. Bg5 h6 10. Bxf6 Bxf6 11. Na3 cxd4 12. cxd4 Nb6 13. Rc1 d5 {½-½ (13) Vachier Lagrave,M (2796)-Nakamura,H (2780) Palma de Mallorca 2017}) 7. c3 {[%emt 0:05:59]} e6 {[%emt 0:02:28] LiveBook: 7 Games} 8. d4 {[%emt 0:02:23]} cxd4 {[%emt 0:02:40]} 9. cxd4 {[%emt 0:00:56]} d5 {[%emt 0:05:52]} 10. Nc3 {[%emt 0:10:34]} dxe4 {[%emt 0:04:35]} 11. Ng5 {[%emt 0:06:55]} Be7 $146 {[%emt 0:05:01]} ({Predecessor:} 11... Bb4 12. Qb3 Qb6 13. Bd2 Be7 14. Ngxe4 Qxb3 15. axb3 Nxe4 16. Rxe4 {½-½ (21) Wandzik,W (2404)-Jakubowski,K (2512) Katowice 2018}) 12. d5 {[%emt 0:15:16]} (12. Qb3 $15) 12... Nxd5 {[%emt 0:06:15]} 13. Ncxe4 {[%emt 0:14:54]} O-O {[%emt 0:05:09]} 14. Qg4 {[%emt 0:04:59]} N7f6 {[%emt 0:07:12]} 15. Qh3 {[%emt 0:05:11]} h6 {[%emt 0:05:12]} 16. Nf3 {[%emt 0:01:24]} Rc4 {[%emt 0:07:28]} 17. Nxf6+ {[%emt 0:06:23]} Bxf6 {[%emt 0:01:35]} 18. Qg3 {[%emt 0:01:51]} Qc7 {[%emt 0:02:24]} 19. Ne5 {[%emt 0:00:57]} Bxe5 {[%emt 0:01:13]} 20. Qxe5 {[%emt 0:00:20]} Qxe5 {[%emt 0:00:30]} 21. Rxe5 {[%emt 0:00:04]} Rc2 $19 {[%emt 0:03:26]} 22. a3 {[%emt 0:06:33]} Rfc8 {[%emt 0:01:41]} 23. Re1 {[%emt 0:00:06]} a5 {[%emt 0:05:00]} 24. b3 {[%emt 0:01:14]} R8c6 {[%emt 0:00:45]} 25. Be3 {[%emt 0:02:20]} R6c3 {[%emt 0:03:12]} 26. b4 {[%emt 0:01:47]} Nxe3 {[%emt 0:00:58]} 27. fxe3 {[%emt 0:01:25]} axb4 {[%emt 0:01:38]} 28. axb4 {[%emt 0:00:04]} Rb2 {[%emt 0:00:07]} 29. Rac1 {[%emt 0:02:02]} Rxc1 {[%emt 0:01:13]} 30. Rxc1 {[%emt 0:00:04]} Rxb4 {[%emt 0:00:05]} 0-1

[Event "22nd Hoogeveen Open 2018"]
[Site "Hoogeveen"]
[Date "2018.10.21"]
[Round "2"]
[White "Oord, Raymon"]
[Black "Pham, Khoi"]
[Result "1/2-1/2"]
[ECO "A01"]
[WhiteElo "1900"]
[BlackElo "2153"]
[Annotator "NA"]
[PlyCount "94"]
[EventDate "2018.10.20"]
[EventType "swiss"]
[EventCountry "NED"]
[SourceTitle "playchess.com"]
[Source "ChessBase"]
[SourceQuality "1"]
[TimeControl "40/5400+30:1800+30"]

1. b3 {[%emt 0:00:00]} e5 {[%emt 0:00:00]} 2. Bb2 {[%emt 0:00:00]} d6 {[%emt 0:00:04]} 3. e3 {[%emt 0:00:00]} Nf6 {[%emt 0:00:39]} 4. c4 {[%emt 0:00:54]} g6 {[%emt 0:00:23]} 5. d4 {[%emt 0:03:09] A01: Nimzowitsch-Larsen Opening} exd4 {[%emt 0:03:49]} 6. exd4 {[%emt 0:01:23]} (6. Qxd4 Bg7 7. Nc3 O-O 8. Nf3 Nbd7 9. Be2 Nc5 10. Rd1 Ng4 11. Qf4 f5 12. Nd4 g5 {0-1 (30) Lagarde,M (2609)-Krasenkow,M (2631) Porticcio 2018}) 6... Bg7 {[%emt 0:03:40]} 7. Bd3 {[%emt 0:11:27]} O-O {[%emt 0:00:50]} 8. Ne2 {[%emt 0:00:35]} Nc6 $146 {[%emt 0:00:31]} ({Predecessor:} 8... d5 9. O-O Nc6 10. a3 Re8 11. Nd2 Bg4 12. f3 Bd7 {1-0 (37) Bahlke,W (2071)-Hamann,J (2138) Erlensee 2007}) 9. Nd2 {[%emt 0:03:40]} Re8 {[%emt 0:04:13]} 10. O-O {[%emt 0:04:00]} Bg4 {[%emt 0:02:50]} 11. f3 {[%emt 0:10:11]} Bd7 {[%emt 0:02:00]} 12. Ne4 {[%emt 0:07:37]} d5 {[%emt 0:06:04]} 13. Nxf6+ {[%emt 0:04:52]} Qxf6 {[%emt 0:03:27]} 14. cxd5 {[%emt 0:10:51]} Nb4 {[%emt 0:02:52]} 15. Be4 {[%emt 0:14:19]} Bb5 {[%emt 0:00:53]} 16. Re1 {[%emt 0:13:05] [#]} ({Better is} 16. Rf2 $15) 16... Rad8 {[%emt 0:09:03]} (16... Rxe4 $1 $17 {[%mdl 512]} 17. fxe4 Nd3) 17. Ng3 {[%emt 0:07:06]} Qb6 {[%emt 0:00:59]} 18. a4 {[%emt 0:01:24]} Ba6 {[%emt 0:01:18]} 19. a5 {[%emt 0:00:31]} Qb5 {[%emt 0:01:06]} 20. Ne2 {[%emt 0:01:54]} f5 {[%emt 0:01:16]} (20... Nxd5 $2 21. Ra4 $17) 21. Nc3 {[%emt 0:01:27]} Qd7 {[%emt 0:00:13]} 22. Ba3 {[%emt 0:01:01]} fxe4 {[%emt 0:03:04]} 23. Bxb4 {[%emt 0:00:20]} exf3 {[%emt 0:01:40]} 24. Qxf3 {[%emt 0:01:06]} Bxd4+ {[%emt 0:01:10]} 25. Kh1 {[%emt 0:00:10]} Qg7 {[%emt 0:03:42]} 26. Rad1 {[%emt 0:00:55]} Rf8 {[%emt 0:02:48]} 27. Qh3 {[%emt 0:00:48]} Rf5 {[%emt 0:00:53]} 28. Re7 {[%emt 0:00:24]} Rf7 {[%emt 0:09:12]} 29. Qe6 {[%emt 0:00:24]} Qf6 {[%emt 0:00:17]} 30. Qxf7+ {[%emt 0:00:28]} Qxf7 {[%emt 0:00:08]} 31. Rxf7 {[%emt 0:00:09]} Bxc3 {[%emt 0:02:13]} 32. Rf4 {[%emt 0:00:13]} Bg7 {[%emt 0:04:21]} 33. Re4 {[%emt 0:00:27]} Bb5 {[%emt 0:02:19]} 34. h3 {[%emt 0:01:03]} Bc6 {[%emt 0:02:15]} 35. Re2 {[%emt 0:00:59]} Bxd5 {[%emt 0:00:55]} 36. Red2 {[%emt 0:00:12]} c6 {[%emt 0:00:30]} 37. Rd3 {[%emt 0:00:42]} Re8 {[%emt 0:00:57]} 38. Re1 {[%emt 0:00:21]} Rxe1+ {[%emt 0:03:27]} 39. Bxe1 {[%emt 0:00:03]} Kf7 {[%emt 0:00:20]} 40. Bf2 {[%emt 0:00:25]} a6 {[%emt 0:00:52]} 41. Bc5 {[%emt 0:30:26]} Bh6 {[%emt 0:31:09]} 42. b4 {[%emt 0:00:00]} Ke6 {[%emt 0:00:00]} 43. Rd1 $16 {[%emt 0:00:00]} Kd7 {[%emt 0:00:00]} 44. Kh2 {[%emt 0:00:00]} Bf4+ {[%emt 0:00:00]} 45. g3 {[%emt 0:00:00]} Be5 {[%emt 0:00:00]} 46. Re1 {[%emt 0:00:00]} Bf6 {[%emt 0:00:00]} 47. Rf1 {[%emt 0:00:00]} Ke6 {[%emt 0:00:00]} 1/2-1/2

[Event "22nd Hoogeveen Open 2018"]
[Site "Hoogeveen"]
[Date "2018.10.21"]
[Round "2"]
[White "Kutchoukov, Daniel"]
[Black "Mellema, Andries"]
[Result "0-1"]
[ECO "C06"]
[WhiteElo "1882"]
[BlackElo "2140"]
[Annotator "NA"]
[PlyCount "102"]
[EventDate "2018.10.20"]
[EventType "swiss"]
[EventCountry "NED"]
[SourceTitle "playchess.com"]
[Source "ChessBase"]
[SourceQuality "1"]
[TimeControl "40/5400+30:1800+30"]

1. e4 {[%emt 0:00:00]} e6 {[%emt 0:00:00]} 2. d4 {[%emt 0:00:00]} d5 {[%emt 0:00:00]} 3. Nd2 {[%emt 0:00:00]} Nf6 {[%emt 0:00:32]} 4. e5 {[%emt 0:00:00]} Nfd7 {[%emt 0:00:09]} 5. Bd3 {[%emt 0:00:00]} c5 {[%emt 0:00:09]} 6. c3 {[%emt 0:00:00]} Nc6 {[%emt 0:00:05]} 7. Ne2 {[%emt 0:00:00]} cxd4 {[%emt 0:00:24]} 8. cxd4 {[%emt 0:00:00]} f6 {[%emt 0:00:24]} 9. exf6 {[%emt 0:00:00]} Nxf6 {[%emt 0:00:19]} 10. Nf3 {[%emt 0:00:02]} Bd6 {[%emt 0:00:06]} 11. O-O {[%emt 0:00:05]} O-O {[%emt 0:00:06]} 12. Bf4 {[%emt 0:07:13]} Bxf4 {[%emt 0:03:01]} 13. Nxf4 {[%emt 0:00:24]} Ne4 {[%emt 0:00:46]} 14. Qc1 {[%emt 0:06:59]} Ng5 {[%emt 0:09:01]} 15. Nxg5 {[%emt 0:03:41]} Qxg5 {[%emt 0:01:15]} 16. Ne2 {[%emt 0:00:35]} Qf6 {[%emt 0:03:45]} 17. Qe3 {[%emt 0:04:02]} e5 {[%emt 0:18:54]} 18. dxe5 {[%emt 0:10:26] LiveBook: 12 Games C06: French Tarrasch: 3...Nf6 4 e5 Nfd7 5 Bd3 main lines} Nxe5 {[%emt 0:01:22]} 19. Nd4 {[%emt 0:33:40]} Bd7 {[%emt 0:24:58]} 20. Rac1 $146 {[%emt 0:17:25]} ({Predecessor:} 20. Rad1 Rae8 21. Qd2 Re7 22. Be2 Qg6 23. f4 Bh3 24. Rf2 Ng4 25. Rf3 Re3 {½-½ (54) Radovanovic,D (2294)-Maksimovic,B (2406) Ikaros 2002}) 20... Kh8 {[%emt 0:06:34]} 21. Be2 {[%emt 0:08:59]} Rae8 {[%emt 0:17:59]} 22. Qd2 {[%emt 0:00:11]} Nc6 {[%emt 0:01:08]} 23. Nb3 {[%emt 0:04:53]} Qg6 {[%emt 0:03:28]} 24. Bd3 {[%emt 0:02:29]} Qd6 {[%emt 0:02:56]} 25. Rce1 {[%emt 0:00:43]} Ne5 {[%emt 0:00:20]} 26. Be2 {[%emt 0:00:37]} Bg4 {[%emt 0:02:16]} 27. Bxg4 {[%emt 0:00:24]} Nxg4 {[%emt 0:00:01]} 28. g3 {[%emt 0:00:34]} Rxe1 {[%emt 0:00:39]} 29. Rxe1 {[%emt 0:00:30]} Nxf2 {[%emt 0:01:35]} 30. Qxf2 {[%emt 0:00:30]} Rxf2 {[%emt 0:00:11]} 31. Kxf2 {[%emt 0:00:13]} h6 {[%emt 0:00:32]} 32. Rd1 {[%emt 0:00:50]} Qf6+ {[%emt 0:00:19]} 33. Ke3 {[%emt 0:00:31]} Qxb2 {[%emt 0:01:02]} 34. Rd2 {[%emt 0:00:27]} Qe5+ {[%emt 0:01:05]} 35. Kd3 {[%emt 0:00:30]} Qe4+ {[%emt 0:01:07]} 36. Kc3 {[%emt 0:00:12]} Qc4+ {[%emt 0:00:11]} 37. Kb2 {[%emt 0:00:05]} b5 {[%emt 0:01:18]} 38. Rd4 {[%emt 0:00:33]} Qe2+ {[%emt 0:00:19]} 39. Rd2 {[%emt 0:00:18]} Qe5+ {[%emt 0:00:14]} 40. Kc2 {[%emt 0:00:18]} a6 {[%emt 0:00:57]} 41. Rd4 {[%emt 0:31:01]} a5 {[%emt 0:05:17]} 42. Rd2 {[%emt 0:00:00]} a4 {[%emt 0:03:12]} 43. Nd4 {[%emt 0:00:00]} b4 {[%emt 0:00:38]} 44. Ne2 {[%emt 0:00:00]} Qe3 $19 {[%emt 0:01:13]} 45. Kd1 {[%emt 0:00:00]} Qe4 {[%emt 0:04:16]} 46. Nc1 {[%emt 0:00:00]} Qf3+ {[%emt 0:03:02]} 47. Kc2 {[%emt 0:00:00]} Qc3+ {[%emt 0:07:07]} 48. Kd1 {[%emt 0:00:00]} Qa1 {[%emt 0:01:13]} 49. Rd3 {[%emt 0:00:00]} Qb1 {[%emt 0:00:15]} 50. Kd2 {[%emt 0:00:00]} Qb2+ {[%emt 0:00:30]} 51. Kd1 {[%emt 0:00:00]} Qxh2 {[%emt 0:00:46]} 0-1